bitfinex/quotes_BTCUSD_20240605
["timestamp","ask_amount","ask_price","bid_price","bid_amount"]
[1717583601094,0.000946,70767.0,70766.0,0.91055007]
[1717583602463,0.000946,70767.0,70766.0,0.97765007]
[1717583603664,0.000946,70767.0,70766.0,0.97758518]
[1717583603864,0.000946,70767.0,70766.0,0.91048518]
[1717583604078,0.000946,70767.0,70766.0,0.96700918]
[1717583607178,0.000946,70767.0,70766.0,1.13330918]
[1717583612344,0.46935528,70778.0,70768.0,0.4621802]
[1717583612563,0.46935528,70778.0,70768.0,1.75058358]
[1717583612759,0.46935528,70778.0,70777.0,0.25073921]
[1717583612977,0.46935528,70778.0,70777.0,1.03362619]
[1717583613177,0.46935528,70778.0,70777.0,1.13362619]
[1717583613385,0.46935528,70778.0,70777.0,1.26894084]
[1717583613581,0.46935528,70778.0,70777.0,2.40909219]
[1717583613807,0.46935528,70778.0,70777.0,1.23387091]
[1717583614009,0.46935528,70778.0,70777.0,2.47225991]
[1717583614222,0.46935528,70778.0,70777.0,2.46195791]
[1717583614420,0.46935528,70778.0,70777.0,2.44089804]
[1717583615911,0.46935528,70778.0,70777.0,2.39879019]
[1717583617416,0.47030128,70778.0,70777.0,2.46195791]
[1717583618039,0.000946,70778.0,70777.0,2.46195791]
[1717583618243,0.000946,70778.0,70777.0,2.39879019]
[1717583618824,0.000946,70778.0,70777.0,2.34379019]
[1717583619315,0.000946,70778.0,70777.0,2.34400913]
[1717583620389,0.000946,70778.0,70777.0,2.34400858]
[1717583621590,0.000946,70778.0,70777.0,2.42822837]
[1717583622337,0.000946,70778.0,70777.0,2.42824821]
[1717583622763,0.000946,70778.0,70777.0,2.57824821]
[1717583623194,0.000946,70778.0,70777.0,2.49401726]
[1717583623945,0.000946,70778.0,70777.0,2.45049914]
[1717583624099,0.000946,70778.0,70777.0,2.57825687]
[1717583624287,0.000946,70778.0,70777.0,2.49401512]
[1717583624492,0.000946,70778.0,70777.0,2.57826734]
[1717583624858,0.004,70779.0,70778.0,0.7446932]
[1717583624999,0.004,70779.0,70778.0,1.03262811]
[1717583625208,0.004,70779.0,70778.0,2.51972311]
[1717583625807,0.004,70779.0,70778.0,2.60397533]
[1717583627614,0.004,70779.0,70778.0,2.60396397]
[1717583628533,0.004,70779.0,70778.0,2.51971175]
[1717583630109,0.004,70779.0,70778.0,2.30404598]
[1717583630307,0.004,70779.0,70778.0,2.40941788]
[1717583631299,0.004,70779.0,70778.0,2.30404598]
[1717583634149,0.004,70779.0,70778.0,2.40950886]
[1717583634350,0.004,70779.0,70778.0,2.30404598]
[1717583634902,0.003,70779.0,70778.0,2.30404598]
[1717583640542,0.003,70779.0,70778.0,2.37114598]
[1717583641630,0.003,70779.0,70778.0,2.32766113]
[1717583641839,0.003,70779.0,70778.0,2.37086249]
[1717583643136,0.003,70779.0,70778.0,2.37086371]
[1717583644100,0.46935528,70790.0,70788.0,0.47825021]
[1717583644352,0.0775,70795.0,70788.0,1.12982501]
[1717583644585,0.0775,70795.0,70788.0,3.19752101]
[1717583644700,0.0775,70795.0,70788.0,3.20721101]
[1717583645158,0.0775,70795.0,70788.0,3.26371101]
[1717583645391,0.0775,70795.0,70788.0,3.25144701]
[1717583645540,0.1526,70790.0,70788.0,2.09862901]
[1717583645874,0.1526,70790.0,70788.0,2.09865061]
[1717583647508,0.07422824,70789.0,70788.0,2.09865061]
[1717583648067,0.07422824,70789.0,70788.0,2.18055061]
[1717583648272,0.07422824,70789.0,70788.0,2.09865061]
[1717583649300,0.07422824,70789.0,70788.0,2.08433032]
[1717583651127,0.07622824,70799.0,70798.0,0.05445121]
[1717583651336,0.07622824,70799.0,70798.0,0.74725361]
[1717583651552,0.07622824,70799.0,70798.0,3.82892561]
[1717583651751,0.07622824,70799.0,70798.0,3.74126461]
[1717583651953,0.07622824,70799.0,70798.0,3.68473561]
[1717583652533,0.03387121,70799.0,70798.0,3.83473561]
[1717583652738,0.03387121,70799.0,70798.0,3.96141364]
[1717583653099,0.03387121,70799.0,70798.0,4.24390664]
[1717583653296,0.03387121,70799.0,70798.0,4.11722861]
[1717583653640,0.03387121,70799.0,70798.0,4.24386585]
[1717583654051,0.03387121,70799.0,70798.0,4.17676585]
[1717583654251,0.03387121,70799.0,70798.0,4.11722861]
[1717583654497,0.03387121,70799.0,70798.0,4.24385393]
[1717583656444,0.03387121,70799.0,70798.0,4.10290832]
[1717583656856,0.03387121,70799.0,70798.0,4.05968414]
[1717583657057,0.03387121,70799.0,70798.0,4.10293905]
[1717583657354,0.03387121,70799.0,70798.0,3.51936405]
[1717583657554,0.03387121,70799.0,70798.0,3.57589505]
[1717583657994,0.03387121,70799.0,70798.0,3.70251002]
[1717583658191,0.03387121,70799.0,70798.0,2.39680402]
[1717583658192,0.27367121,70799.0,70798.0,2.39680402]
[1717583658413,0.03387121,70799.0,70798.0,2.19091105]
[1717583658611,0.004,70799.0,70798.0,2.19091105]
[1717583660802,0.004,70799.0,70798.0,2.12381105]
[1717583661228,0.004,70799.0,70798.0,2.19091105]
[1717583663097,0.004,70799.0,70798.0,2.35121105]
[1717583663424,0.004,70799.0,70798.0,2.12381105]
[1717583663620,0.004,70799.0,70798.0,2.19091105]
[1717583664891,0.004,70799.0,70798.0,2.12381105]
[1717583665122,0.004,70799.0,70798.0,2.19091105]
[1717583665324,0.004,70799.0,70798.0,2.14765614]
[1717583665528,0.004,70799.0,70798.0,2.19187412]
[1717583665759,0.004,70799.0,70798.0,2.12477412]
[1717583665956,0.004,70799.0,70798.0,2.19187412]
[1717583666629,0.0803,70799.0,70798.0,2.19187412]
[1717583667019,0.0803,70799.0,70798.0,2.19195059]
[1717583668056,0.004,70799.0,70798.0,2.19195059]
[1717583668689,0.004,70799.0,70798.0,2.43085059]
[1717583669039,0.004,70799.0,70798.0,2.26845059]
[1717583669565,0.004,70799.0,70798.0,2.19195059]
[1717583671544,0.004,70799.0,70798.0,2.19198228]
[1717583674031,0.004,70799.0,70798.0,2.43268228]
[1717583674439,0.004,70799.0,70798.0,2.27498228]
[1717583675713,0.004,70799.0,70798.0,2.55747528]
[1717583676504,0.004,70799.0,70798.0,2.40737528]
[1717583676685,0.004,70799.0,70798.0,2.47447528]
[1717583677083,0.0837,70799.0,70798.0,2.47447528]
[1717583677419,0.2377,70799.0,70798.0,2.47447528]
[1717583678107,0.004,70799.0,70798.0,2.47447528]
[1717583682408,0.004,70799.0,70798.0,2.12488228]
[1717583682609,0.004,70799.0,70798.0,2.19198228]
[1717583682841,0.004,70799.0,70798.0,2.31856202]
[1717583684412,0.004,70799.0,70798.0,2.19198228]
[1717583685056,0.004,70799.0,70798.0,2.19284228]
[1717583685264,0.004,70799.0,70798.0,2.12574228]
[1717583685471,0.004,70799.0,70798.0,2.19284228]
[1717583685694,0.004946,70799.0,70798.0,2.19284228]
[1717583690717,0.004946,70799.0,70798.0,2.06156628]
[1717583691147,0.243546,70799.0,70798.0,1.60547328]
[1717583691357,0.243546,70799.0,70798.0,0.87953408]
[1717583691358,0.55285786,70799.0,70798.0,0.87953408]
[1717583691591,0.55285786,70799.0,70798.0,0.72953408]
[1717583692451,0.55285786,70799.0,70798.0,0.44688187]
[1717583692667,0.55285786,70799.0,70798.0,0.30246294]
[1717583697230,0.35285786,70799.0,70798.0,0.30246294]
[1717583698760,0.342546,70799.0,70798.0,0.72937487]
[1717583699363,0.342546,70799.0,70798.0,0.85622317]
[1717583699796,0.342546,70799.0,70798.0,0.72937487]
[1717583701317,0.004946,70799.0,70798.0,0.76763607]
[1717583701521,0.004946,70799.0,70798.0,1.35559407]
[1717583701822,0.004946,70799.0,70798.0,1.48247235]
[1717583701950,0.004946,70799.0,70798.0,1.35559407]
[1717583702174,0.004946,70799.0,70798.0,1.63808707]
[1717583703826,0.004946,70799.0,70798.0,1.70518707]
[1717583705275,1e-08,70799.0,70798.0,1.70518707]
[1717583705880,1e-08,70799.0,70798.0,1.11722907]
[1717583706303,1e-08,70799.0,70798.0,1.54972207]
[1717583707255,1e-08,70799.0,70798.0,2.24972207]
[1717583709401,1e-08,70799.0,70798.0,2.48904098]
[1717583709623,1e-08,70799.0,70798.0,2.77404098]
[1717583710010,0.08171024,70807.0,70806.0,1.27666421]
[1717583710180,0.08171024,70807.0,70806.0,1.65768285]
[1717583710543,0.08171024,70807.0,70806.0,5.06820985]
[1717583710918,0.08171024,70807.0,70806.0,1.65768285]
[1717583711085,0.08171024,70807.0,70806.0,4.05140385]
[1717583711302,0.08171024,70807.0,70806.0,3.57713585]
[1717583711517,0.08171024,70807.0,70806.0,3.48343485]
[1717583711791,0.08171024,70807.0,70806.0,3.47790085]
[1717583712154,0.08171024,70807.0,70806.0,3.09304685]
[1717583712676,0.08171024,70807.0,70806.0,3.04906101]
[1717583712875,0.08171024,70807.0,70806.0,3.28036521]
[1717583714800,0.08171024,70807.0,70806.0,3.26604492]
[1717583715301,0.08171024,70807.0,70806.0,3.07888761]
[1717583716957,0.009482,70807.0,70806.0,3.15608761]
[1717583719987,0.009482,70807.0,70806.0,3.08898761]
[1717583720187,0.009482,70807.0,70806.0,3.07888761]
[1717583720336,0.009482,70807.0,70806.0,2.83122761]
[1717583720542,0.254782,70807.0,70806.0,2.70034361]
[1717583720907,0.254782,70807.0,70806.0,2.82699427]
[1717583721134,0.254782,70807.0,70806.0,2.50717127]
[1717583721589,0.254782,70807.0,70806.0,2.46302438]
[1717583721927,0.353782,70807.0,70806.0,2.0836548]
[1717583722133,0.353782,70807.0,70806.0,1.2141236]
[1717583722334,0.353782,70807.0,70806.0,1.08747294]
[1717583722785,0.56409386,70807.0,70806.0,0.68429994]
[1717583722993,0.56409386,70807.0,70806.0,0.53988101]
[1717583725311,0.36409386,70807.0,70806.0,0.58210322]
[1717583725529,0.56409386,70807.0,70806.0,0.58210322]
[1717583725911,0.56409386,70807.0,70806.0,0.53988101]
[1717583728272,0.56409386,70807.0,70806.0,0.58210215]
[1717583728882,0.56409386,70807.0,70806.0,0.28345114]
[1717583729042,0.64119386,70807.0,70806.0,0.1]
[1717583729243,0.21031186,70805.0,70804.0,0.14222114]
[1717583729444,0.21031186,70805.0,70804.0,0.01432029]
[1717583729445,0.5243401,70805.0,70804.0,0.01432029]
[1717583730021,0.5143401,70805.0,70804.0,0.01432029]
[1717583730884,0.5143401,70805.0,70804.0,0.15555429]
[1717583731097,0.5143401,70805.0,70804.0,0.25555429]
[1717583731615,0.5199327,70805.0,70804.0,0.25555429]
[1717583734224,0.5199327,70805.0,70804.0,0.241234]
[1717583735016,0.30962084,70805.0,70804.0,0.241234]
[1717583735197,0.23432084,70805.0,70804.0,0.241234]
[1717583735398,0.31252084,70805.0,70804.0,0.241234]
[1717583736872,0.31252084,70805.0,70804.0,0.38565293]
[1717583739066,0.31252084,70805.0,70804.0,0.66812193]
[1717583739487,0.31252084,70805.0,70804.0,0.71031479]
[1717583739904,0.31252084,70805.0,70804.0,0.66812193]
[1717583740427,0.07782084,70805.0,70804.0,0.66812193]
[1717583740725,0.2881327,70805.0,70804.0,0.66812193]
[1717583741280,0.3707327,70805.0,70804.0,0.66812193]
[1717583742786,0.3707327,70805.0,70804.0,0.70638313]
[1717583742992,0.3707327,70805.0,70804.0,0.38565293]
[1717583743192,0.16042084,70805.0,70804.0,0.42391413]
[1717583744475,0.16042084,70805.0,70804.0,0.46610699]
[1717583745234,0.16042084,70805.0,70804.0,0.4661144]
[1717583746305,0.3707327,70805.0,70804.0,0.4278532]
[1717583746476,0.5344327,70805.0,70804.0,0.4278532]
[1717583747632,0.5344327,70805.0,70804.0,0.28343427]
[1717583747924,0.5344327,70805.0,70804.0,0.241234]
[1717583755002,0.5334327,70805.0,70804.0,0.241234]
[1717583755241,0.5343787,70805.0,70804.0,0.241234]
[1717583759701,0.5443787,70805.0,70804.0,0.241234]
[1717583760271,0.5343787,70805.0,70804.0,0.241234]
[1717583762463,0.6114787,70805.0,70804.0,0.241234]
[1717583762869,0.5343787,70805.0,70804.0,0.241234]
[1717583763814,0.5443787,70805.0,70804.0,0.241234]
[1717583766652,0.5443787,70805.0,70804.0,0.1]
[1717583766882,0.5443787,70805.0,70802.0,0.1]
[1717583766883,0.40081186,70803.0,70802.0,0.1]
[1717583767086,0.40081186,70803.0,70801.0,0.17763862]
[1717583767087,0.46541186,70802.0,70801.0,0.17763862]
[1717583767284,0.47088043,70802.0,70801.0,0.11432029]
[1717583768543,0.46088043,70802.0,70801.0,0.11432029]
[1717583768774,0.52798043,70802.0,70801.0,0.11432029]
[1717583770512,0.53798043,70802.0,70801.0,0.11432029]
[1717583770918,0.63798043,70802.0,70801.0,0.11432029]
[1717583771459,0.53798043,70802.0,70801.0,0.11432029]
[1717583771643,0.63798043,70802.0,70801.0,0.11432029]
[1717583771842,0.63798043,70802.0,70801.0,0.1]
[1717583773315,0.62798043,70802.0,70801.0,0.1]
[1717583773851,0.63798043,70802.0,70801.0,0.1]
[1717583776185,0.62798043,70802.0,70801.0,0.1]
[1717583776592,0.63798043,70802.0,70801.0,0.1]
[1717583777394,0.62798043,70802.0,70801.0,0.1]
[1717583777867,0.56088043,70802.0,70801.0,0.1]
[1717583778023,0.62798043,70802.0,70801.0,0.1]
[1717583778655,0.56088043,70802.0,70801.0,0.1]
[1717583778859,0.62798043,70802.0,70801.0,0.1]
[1717583779247,0.56088043,70802.0,70801.0,0.1]
[1717583779463,0.62798043,70802.0,70801.0,0.1]
[1717583779885,0.56088043,70802.0,70801.0,0.24124]
[1717583780042,0.62798043,70802.0,70801.0,0.24124]
[1717583781862,0.62798043,70802.0,70801.0,0.31445013]
[1717583782269,0.56088043,70802.0,70801.0,0.31445013]
[1717583782473,0.63798043,70802.0,70801.0,0.31445013]
[1717583782888,0.69971923,70802.0,70801.0,0.17321013]
[1717583783303,0.69971923,70802.0,70801.0,0.083802]
[1717583783503,0.69971923,70802.0,70801.0,0.07321013]
[1717583783971,0.92271923,70802.0,70801.0,0.07321013]
[1717583784177,1.06713816,70802.0,70801.0,0.07321013]
[1717583784379,1.20837616,70802.0,70801.0,0.07322346]
[1717583785475,0.71555066,70799.0,70798.0,0.00086]
[1717583785799,0.95549084,70799.0,70798.0,0.08840535]
[1717583786884,0.95549084,70799.0,70798.0,0.01518029]
[1717583786885,1.09673484,70799.0,70798.0,0.01518029]
[1717583787091,1.09673484,70799.0,70798.0,0.0884053]
[1717583789238,1.09673484,70799.0,70798.0,0.07408501]
[1717583789630,1.29673484,70799.0,70798.0,0.07408501]
[1717583789831,1.09673484,70799.0,70798.0,0.07408501]
[1717583790199,1.09673484,70799.0,70798.0,0.00086]
[1717583792150,1.29673484,70799.0,70798.0,0.00086]
[1717583793845,1.76609012,70799.0,70798.0,0.00086]
[1717583794476,2.04857912,70799.0,70798.0,0.00086]
[1717583794605,2.19697912,70799.0,70798.0,0.00086]
[1717583795014,2.29697912,70799.0,70798.0,0.00086]
[1717583797059,2.19697912,70799.0,70798.0,0.00086]
[1717583797254,2.29697912,70799.0,70798.0,0.00086]
[1717583798270,2.19697912,70799.0,70798.0,0.00086]
[1717583798899,2.29697912,70799.0,70798.0,0.00086]
[1717583799143,2.19697912,70799.0,70798.0,0.00086]
[1717583799308,2.29697912,70799.0,70798.0,0.00086]
[1717583802748,2.19697912,70799.0,70798.0,0.00086]
[1717583802992,2.29697912,70799.0,70798.0,0.00086]
[1717583803715,2.19697912,70799.0,70798.0,0.00086]
[1717583803922,2.29697912,70799.0,70798.0,0.00086]
[1717583805522,2.67946812,70799.0,70798.0,0.00086]
[1717583805721,2.67946812,70799.0,70764.0,0.11022043]
[1717583805722,0.48105066,70780.0,70768.0,0.141305]
[1717583805923,1.29667802,70780.0,70779.0,0.01518029]
[1717583806281,1.22957802,70780.0,70779.0,0.01518029]
[1717583806428,1.29667802,70780.0,70779.0,0.01518029]
[1717583808712,1.09667802,70780.0,70779.0,0.01518029]
[1717583809351,1.29667802,70780.0,70779.0,0.01518029]
[1717583810949,1.29667802,70780.0,70779.0,0.00086]
[1717583811578,1.09667802,70780.0,70779.0,0.00086]
[1717583812724,1.29667802,70780.0,70779.0,0.00086]
[1717583813750,1.09667802,70780.0,70779.0,0.00086]
[1717583815468,0.50037709,70780.0,70779.0,0.00086]
[1717583815649,0.47737709,70780.0,70779.0,0.00086]
[1717583815874,0.47737709,70780.0,70779.0,0.24066]
[1717583815883,0.54447709,70780.0,70779.0,0.24066]
[1717583816264,0.47737709,70780.0,70779.0,0.24066]
[1717583816460,0.54447709,70780.0,70779.0,0.24066]
[1717583817809,0.56747709,70780.0,70779.0,0.24066]
[1717583820773,0.57747709,70780.0,70779.0,0.24066]
[1717583821172,0.57747709,70780.0,70779.0,0.08116]
[1717583822432,0.57747709,70780.0,70779.0,0.00086]
[1717583822955,0.56747709,70780.0,70779.0,0.00086]
[1717583823163,0.50037709,70780.0,70779.0,0.00086]
[1717583823365,0.56747709,70780.0,70779.0,0.00086]
[1717583824445,0.54447709,70780.0,70779.0,0.00086]
[1717583825210,0.47737709,70780.0,70779.0,0.00086]
[1717583825422,0.54447709,70780.0,70779.0,0.00086]
[1717583825886,0.41563829,70780.0,70779.0,0.367944]
[1717583826106,0.41563829,70780.0,70779.0,0.467944]
[1717583826476,0.40931186,70780.0,70779.0,0.467944]
[1717583826655,0.199,70780.0,70779.0,0.467944]
[1717583827031,0.41521767,70780.0,70779.0,0.467944]
[1717583827440,0.20490581,70780.0,70779.0,0.467944]
[1717583827644,0.41521767,70780.0,70779.0,0.467944]
[1717583827817,0.20490581,70780.0,70779.0,0.467944]
[1717583827979,0.41521767,70780.0,70779.0,0.467944]
[1717583828720,0.20490581,70780.0,70779.0,0.467944]
[1717583828936,0.41521767,70780.0,70779.0,0.467944]
[1717583829141,0.10490581,70780.0,70779.0,0.535044]
[1717583829284,0.10490581,70780.0,70779.0,0.467944]
[1717583829747,0.10490581,70780.0,70779.0,0.53114431]
[1717583831656,0.10490581,70780.0,70779.0,1.27896244]
[1717583831657,0.00590581,70780.0,70779.0,1.27896244]
[1717583831885,0.00590581,70780.0,70779.0,1.21576213]
[1717583832132,0.07222824,70787.0,70786.0,0.655811]
[1717583832247,0.07222824,70787.0,70786.0,0.94278605]
[1717583832446,0.07816963,70787.0,70786.0,0.83723129]
[1717583832647,0.07222824,70787.0,70786.0,0.83723129]
[1717583833157,0.07222824,70787.0,70786.0,0.98165022]
[1717583833581,0.07222824,70787.0,70786.0,1.08716687]
[1717583834004,0.07222824,70787.0,70786.0,1.26419122]
[1717583836103,0.07222824,70787.0,70786.0,1.92289722]
[1717583837428,0.07222824,70787.0,70786.0,1.90857693]
[1717583837845,0.07222824,70787.0,70786.0,1.64921493]
[1717583838048,0.07222824,70797.0,70786.0,1.64921493]
[1717583838049,0.07222824,70797.0,70796.0,0.423751]
[1717583838249,0.07222824,70797.0,70796.0,0.81772998]
[1717583838453,0.07818187,70797.0,70796.0,0.77557129]
[1717583838990,0.07818187,70797.0,70796.0,0.81772998]
[1717583839194,0.28849373,70797.0,70796.0,0.81772998]
[1717583839400,0.28849373,70797.0,70796.0,0.77557129]
[1717583840467,0.07818187,70797.0,70796.0,0.77557129]
[1717583840896,0.28849373,70797.0,70796.0,0.77557129]
[1717583842568,0.07818187,70797.0,70796.0,0.77557129]
[1717583843146,0.27818187,70797.0,70796.0,0.77557129]
[1717583843349,0.27818187,70797.0,70796.0,0.761251]
[1717583845456,0.28849373,70797.0,70796.0,0.761251]
[1717583847459,0.07818187,70797.0,70796.0,0.761251]
[1717583847638,0.28849373,70797.0,70796.0,0.761251]
[1717583847858,0.27818187,70797.0,70796.0,0.761251]
[1717583848203,0.28849373,70797.0,70796.0,0.761251]
[1717583849089,0.28849373,70797.0,70796.0,0.602951]
[1717583849681,0.27818187,70797.0,70796.0,0.602951]
[1717583849912,0.28849373,70797.0,70796.0,0.602951]
[1717583851870,0.28849373,70797.0,70796.0,0.523751]
[1717583852411,0.27818187,70797.0,70796.0,0.523751]
[1717583852616,0.28849373,70797.0,70796.0,0.523751]
[1717583855634,0.28849373,70797.0,70796.0,0.24125]
[1717583857023,0.07818187,70797.0,70796.0,0.24125]
[1717583857232,0.27818187,70797.0,70796.0,0.24125]
[1717583857434,0.07818187,70797.0,70796.0,0.24125]
[1717583858404,0.07818187,70797.0,70796.0,0.24211]
[1717583863477,0.07818187,70797.0,70796.0,0.66902993]
[1717583863669,0.07222824,70797.0,70796.0,0.74642993]
[1717583863849,0.07222824,70797.0,70796.0,0.89722993]
[1717583864360,0.07222824,70797.0,70796.0,0.98136324]
[1717583865308,0.07222824,70797.0,70796.0,0.89722993]
[1717583865518,0.02986467,70797.0,70796.0,0.89722993]
[1717583866416,0.03584191,70797.0,70796.0,0.98156159]
[1717583868015,0.03584191,70797.0,70796.0,0.89722993]
[1717583868674,0.03584191,70797.0,70796.0,1.00270124]
[1717583869011,0.03584191,70797.0,70796.0,0.89722993]
[1717583869824,0.02986467,70797.0,70796.0,0.89722993]
[1717583871182,0.02986467,70797.0,70796.0,1.17973093]
[1717583871486,0.02986467,70797.0,70796.0,1.30593089]
[1717583871817,0.02986467,70797.0,70796.0,1.17973093]
[1717583872353,0.02986467,70797.0,70796.0,1.21799213]
[1717583875497,0.02886467,70797.0,70796.0,1.21799213]
[1717583876388,0.02886467,70797.0,70796.0,1.40433426]
[1717583876719,0.02886467,70797.0,70796.0,1.87977126]
[1717583877433,0.02886467,70797.0,70796.0,1.69342913]
[1717583878924,0.02886467,70797.0,70796.0,1.97593013]
[1717583882958,0.02886467,70797.0,70796.0,1.70946893]
[1717583883166,0.02886467,70797.0,70796.0,1.59454513]
[1717583883318,0.03496724,70797.0,70796.0,1.59454513]
[1717583883525,0.02886467,70797.0,70796.0,1.59454513]
[1717583883921,0.02886467,70797.0,70796.0,1.78181262]
[1717583884305,0.02886467,70797.0,70796.0,1.59454513]
[1717583884510,0.02886467,70797.0,70796.0,1.78181262]
[1717583884929,0.02886467,70797.0,70796.0,2.11954513]
[1717583885334,0.02886467,70797.0,70796.0,1.83454513]
[1717583889677,0.02886467,70797.0,70796.0,2.11954513]
[1717583889989,0.02886467,70797.0,70796.0,1.83454513]
[1717583890104,0.07217424,70805.0,70796.0,1.83454513]
[1717583890105,0.07217424,70805.0,70804.0,0.0382612]
[1717583890492,0.07828314,70805.0,70804.0,0.48758013]
[1717583890660,0.07828314,70805.0,70804.0,0.58758013]
[1717583891065,0.07217424,70805.0,70804.0,2.78098113]
[1717583891290,0.07217424,70805.0,70804.0,0.58758013]
[1717583891488,0.07217424,70805.0,70804.0,2.58810913]
[1717583891701,0.07217424,70805.0,70804.0,0.58758013]
[1717583891895,0.07217424,70805.0,70804.0,3.66716913]
[1717583892401,0.07217424,70805.0,70804.0,3.44829713]
[1717583892950,0.07217424,70805.0,70804.0,3.73076613]
[1717583893590,0.07217424,70805.0,70804.0,3.66366613]
[1717583893799,0.07217424,70805.0,70804.0,2.84786486]
[1717583894006,0.07217424,70805.0,70804.0,2.66082013]
[1717583894790,0.07217424,70805.0,70804.0,1.64536013]
[1717583894997,0.07217424,70805.0,70804.0,1.71246013]
[1717583896072,0.15247424,70805.0,70804.0,0.66812193]
[1717583896277,0.15247424,70805.0,70804.0,0.79479685]
[1717583896483,0.15247424,70805.0,70804.0,0.95719685]
[1717583896695,0.15864639,70805.0,70804.0,0.95719685]
[1717583896898,0.15864639,70805.0,70804.0,0.83052193]
[1717583897094,0.15864639,70805.0,70804.0,0.66812193]
[1717583897549,0.15864639,70805.0,70804.0,0.83099293]
[1717583897907,0.15864639,70805.0,70804.0,0.9576743]
[1717583898515,0.15247424,70805.0,70804.0,0.83099293]
[1717583898804,0.15862012,70805.0,70804.0,0.83099293]
[1717583899643,0.07832012,70805.0,70804.0,0.83099293]
[1717583900540,0.07832012,70805.0,70804.0,0.66812193]
[1717583900782,0.07832012,70805.0,70804.0,0.95312193]
[1717583901881,0.27832012,70805.0,70804.0,1.02022193]
[1717583902078,0.07832012,70805.0,70804.0,1.02022193]
[1717583905806,0.07832012,70805.0,70804.0,0.95312193]
[1717583906032,0.07832012,70805.0,70804.0,1.02022193]
[1717583907051,0.07832012,70805.0,70804.0,0.82042193]
[1717583908824,0.07217424,70805.0,70804.0,0.82042193]
[1717583909204,0.07832308,70805.0,70804.0,0.75332193]
[1717583909423,0.07832308,70805.0,70804.0,0.82042193]
[1717583910171,0.07832308,70805.0,70804.0,1.88787793]
[1717583910418,0.07832308,70805.0,70804.0,1.23599793]
[1717583910566,0.07217424,70805.0,70804.0,1.23599793]
[1717583911817,0.07830748,70805.0,70804.0,1.23599793]
[1717583915547,0.07217424,70805.0,70804.0,1.18342393]
[1717583915975,0.07845868,70805.0,70804.0,1.11349093]
[1717583916153,0.07845868,70805.0,70804.0,1.09973093]
[1717583917600,0.07845868,70805.0,70804.0,1.01949393]
[1717583918721,0.07845868,70805.0,70804.0,1.30449393]
[1717583919329,0.07845868,70805.0,70804.0,1.49187253]
[1717583920520,0.07845868,70805.0,70804.0,1.30449393]
[1717583922936,0.07845868,70805.0,70804.0,1.53849393]
[1717583923304,0.000946,70805.0,70804.0,1.43617406]
[1717583925703,0.000946,70805.0,70804.0,1.51993406]
[1717583925907,0.000946,70805.0,70804.0,1.43703406]
[1717583927624,0.009482,70810.0,70809.0,0.0382612]
[1717583927828,0.008,70819.0,70813.0,0.0382612]
[1717583928069,0.008,70819.0,70813.0,1.21794256]
[1717583928273,0.01449854,70814.0,70813.0,1.21794256]
[1717583928493,0.009482,70814.0,70813.0,6.52504756]
[1717583928696,0.009482,70814.0,70813.0,6.58154156]
[1717583928873,0.009482,70814.0,70813.0,6.89006056]
[1717583929158,0.009482,70814.0,70813.0,6.94655956]
[1717583929311,0.008,70819.0,70813.0,6.94655956]
[1717583929312,0.008,70819.0,70815.0,0.9443262]
[1717583929466,0.008,70819.0,70815.0,1.18874513]
[1717583929908,0.008,70819.0,70815.0,5.33515013]
[1717583930148,0.008,70819.0,70815.0,5.09154813]
[1717583930515,0.008,70819.0,70815.0,5.00163913]
[1717583930712,0.008,70819.0,70815.0,4.33659213]
[1717583930944,0.008,70819.0,70815.0,4.18309213]
[1717583931162,0.0787,70817.0,70815.0,2.45269713]
[1717583931399,0.0787,70817.0,70815.0,1.95112013]
[1717583931546,0.0787,70817.0,70815.0,1.73023313]
[1717583931740,0.0787,70817.0,70815.0,1.91730686]
[1717583932927,0.0787,70817.0,70815.0,1.73023313]
[1717583933769,0.0787,70817.0,70815.0,1.66313313]
[1717583933969,0.0787,70817.0,70815.0,1.73023313]
[1717583934177,0.0787,70817.0,70815.0,1.91729128]
[1717583935172,0.0787,70817.0,70815.0,1.91719128]
[1717583935375,0.0787,70817.0,70815.0,1.73013313]
[1717583936214,0.0787,70817.0,70815.0,1.66303313]
[1717583936424,0.0787,70817.0,70815.0,1.34074513]
[1717583936623,0.0787,70817.0,70815.0,1.65060913]
[1717583938721,0.0787,70817.0,70815.0,1.70709013]
[1717583942103,0.0787,70817.0,70815.0,1.84959013]
[1717583942322,0.1644,70819.0,70815.0,1.99209013]
[1717583944640,0.008,70819.0,70815.0,1.99209013]
[1717583944831,0.008,70819.0,70815.0,2.17909666]
[1717583945012,0.008,70819.0,70815.0,2.70162266]
[1717583945215,0.008,70819.0,70817.0,0.7442062]
[1717583945415,0.008,70819.0,70817.0,1.53866342]
[1717583945630,0.008,70819.0,70817.0,1.60576342]
[1717583946113,0.008,70819.0,70817.0,4.55428042]
[1717583946315,0.008,70819.0,70817.0,4.74115606]
[1717583946522,0.008,70819.0,70817.0,4.75047206]
[1717583946978,0.008,70819.0,70817.0,4.56359642]
[1717583949435,0.008,70819.0,70817.0,4.75043487]
[1717583949886,0.008,70819.0,70817.0,4.56359642]
[1717583950634,0.008,70819.0,70817.0,4.54927613]
[1717583951436,0.008,70819.0,70817.0,4.79017613]
[1717583951632,0.008,70819.0,70817.0,5.08284558]
[1717583955863,0.008,70819.0,70817.0,4.79017613]
[1717583956504,0.008,70819.0,70817.0,5.08284553]
[1717583959282,0.008,70819.0,70817.0,5.36784553]
[1717583962631,0.008,70819.0,70817.0,5.51784553]
[1717583963522,0.250482,70818.0,70817.0,3.61124453]
[1717583963727,0.250482,70818.0,70817.0,3.39040897]
[1717583963944,0.250482,70818.0,70817.0,3.20347853]
[1717583964622,0.250482,70818.0,70817.0,2.53133933]
[1717583964846,0.250482,70818.0,70817.0,2.30478833]
[1717583965064,0.255842,70818.0,70817.0,2.30478833]
[1717583965272,0.250482,70818.0,70817.0,2.30478833]
[1717583965451,0.25584277,70818.0,70817.0,2.30478833]
[1717583966477,0.25584277,70818.0,70817.0,2.40318077]
[1717583966684,0.45584277,70818.0,70817.0,1.63742584]
[1717583966890,0.46615463,70818.0,70817.0,1.3545964]
[1717583967112,0.46615463,70818.0,70817.0,1.1985964]
[1717583967251,0.46615463,70818.0,70817.0,1.1765964]
[1717583970590,0.25584277,70818.0,70817.0,1.1765964]
[1717583970788,0.46615463,70818.0,70817.0,1.1765964]
[1717583971439,0.46615463,70818.0,70817.0,1.177263]
[1717583975419,0.46615463,70818.0,70817.0,1.070263]
[1717583975599,0.46615463,70818.0,70817.0,0.816963]